bitfinex-derivatives/quotes_BTCF0:USTF0_20250108
["timestamp","ask_amount","ask_price","bid_price","bid_amount"]
[1736359434100,0.053053,94278.0,94277.0,0.004]
[1736359434599,0.053053,94278.0,94265.0,0.00887327]
[1736359434793,0.053061,94264.0,94263.0,0.053061]
[1736359434984,0.053066,94254.0,94250.0,0.053068]
[1736359435190,0.053068,94251.0,94250.0,0.053068]
[1736359435391,0.3608,94256.0,94255.0,0.053066]
[1736359435586,0.3608,94256.0,94255.0,1.553066]
[1736359436187,0.053057,94271.0,94270.0,0.053056]
[1736359436491,0.002,94278.0,94252.0,0.3608]
[1736359436492,0.053054,94276.0,94268.0,0.3608]
[1736359436801,0.3608,94283.0,94268.0,0.3608]
[1736359437295,0.3608,94283.0,94282.0,0.05305]
[1736359437597,0.3608,94311.0,94282.0,0.3608]
[1736359437785,0.3608,94319.0,94300.0,0.19457958]
[1736359437986,0.053031,94318.0,94311.0,0.053034]
[1736359438190,0.053033,94314.0,94313.0,0.053033]
[1736359438396,0.3608,94330.0,94312.0,1.50076]
[1736359438584,0.19457958,94350.0,94322.0,0.3608]
[1736359438793,0.053016,94343.0,94342.0,0.053016]
[1736359438994,0.053016,94344.0,94341.0,0.3608]
[1736359439190,0.3608,94351.0,94341.0,0.3608]
[1736359439191,0.053016,94343.0,94341.0,0.3608]
[1736359439392,0.053016,94343.0,94342.0,1.5]
[1736359440397,0.053016,94343.0,94342.0,1.553017]
[1736359440798,0.053016,94343.0,94342.0,1.5]
[1736359440992,0.053014,94348.0,94347.0,0.053014]
[1736359441302,0.09477657,94354.0,94342.0,0.054777]
[1736359441303,0.007,94343.0,94342.0,0.054777]
[1736359441693,0.007,94343.0,94342.0,0.054017]
[1736359441897,0.007,94343.0,94342.0,1.501]
[1736359442093,0.007,94343.0,94342.0,0.001]
[1736359442294,0.053016,94344.0,94330.0,0.18952104]
[1736359442494,0.053023,94331.0,94330.0,0.18952104]
[1736359443003,0.053023,94331.0,94330.0,0.053023]
[1736359443203,0.053019,94338.0,94330.0,0.00858819]
[1736359443505,0.053019,94338.0,94336.0,0.05302]
[1736359444401,0.15794493,94342.0,94332.0,0.3608]
[1736359444593,0.15794493,94342.0,94333.0,0.053022]
[1736359444796,0.007,94338.0,94337.0,0.053019]
[1736359445104,0.013,94338.0,94337.0,0.053019]
[1736359445806,0.007,94338.0,94337.0,0.053019]
[1736359446007,0.014,94338.0,94337.0,0.054019]
[1736359446396,0.014,94338.0,94337.0,0.06282042]
[1736359446895,0.15794493,94345.0,94344.0,0.053016]
[1736359447105,0.15794493,94345.0,94344.0,0.413816]
[1736359447301,0.18955315,94359.0,94345.0,0.053015]
[1736359447498,0.18955315,94359.0,94353.0,0.05301]
[1736359448008,0.18955315,94359.0,94344.0,0.3618]
[1736359448200,0.18955315,94359.0,94354.0,1.5]
[1736359448398,0.18955315,94359.0,94357.0,0.053008]
[1736359448793,0.001,94359.0,94357.0,0.053008]
[1736359450305,0.09454032,94358.0,94357.0,0.053008]
[1736359450701,0.09454032,94358.0,94357.0,0.06281359]
[1736359450897,0.001,94359.0,94357.0,0.06281359]
[1736359451406,0.1,94360.0,94359.0,0.053007]
[1736359451604,0.1,94360.0,94357.0,0.01880559]
[1736359451605,0.053007,94359.0,94357.0,0.01880559]
[1736359451795,0.053007,94359.0,94358.0,1.5]
[1736359452105,0.057007,94359.0,94357.0,0.001]
[1736359453107,0.057007,94359.0,94357.0,0.054008]
[1736359454009,0.1,94360.0,94359.0,0.053007]
[1736359454703,0.1,94360.0,94359.0,1.553007]
[1736359454910,0.052995,94381.0,94379.0,0.052996]
[1736359455107,0.052992,94387.0,94379.0,0.413796]
[1736359456412,0.00941044,94380.0,94379.0,0.413796]
[1736359456606,0.5608,94400.0,94389.0,0.05299]
[1736359456797,0.5608,94400.0,94389.0,0.41379]
[1736359457001,0.5608,94400.0,94399.0,0.052985]
[1736359457002,0.2,94400.0,94399.0,0.052985]
[1736359457197,0.2,94400.0,94399.0,0.413785]
[1736359458205,0.206,94400.0,94399.0,1.915785]
[1736359458811,0.206,94400.0,94399.0,1.92470221]
[1736359460812,0.202,94400.0,94399.0,1.92270221]
[1736359463309,0.17680528,94400.0,94399.0,1.92270221]
[1736359463906,0.13479986,94400.0,94399.0,1.92270221]
[1736359464106,0.13479986,94400.0,94399.0,2.22270221]
[1736359464305,0.052969,94428.0,94419.0,0.052974]
[1736359464509,0.052977,94413.0,94411.0,0.3608]
[1736359465107,0.3608,94421.0,94400.0,0.19406291]
[1736359465307,0.052978,94412.0,94410.0,0.19406291]
[1736359465505,0.052977,94414.0,94402.0,0.19406291]
[1736359465701,0.052975,94416.0,94405.0,0.052981]
[1736359465902,0.052975,94416.0,94413.0,0.052977]
[1736359466108,0.3608,94429.0,94419.0,0.052974]
[1736359466307,0.3608,94429.0,94419.0,0.413774]
[1736359466604,0.3608,94429.0,94419.0,0.414774]
[1736359466914,0.105,94420.0,94419.0,0.414774]
[1736359467415,0.105,94420.0,94419.0,1.914774]
[1736359469209,0.00403958,94420.0,94419.0,2.214774]
[1736359469608,0.00403958,94420.0,94419.0,2.22253577]
[1736359469806,0.1,94440.0,94419.0,2.16956177]
[1736359470016,0.1,94440.0,94439.0,0.052962]
[1736359470714,0.07969396,94440.0,94439.0,1.552962]
[1736359470916,0.08069396,94440.0,94439.0,1.552962]
[1736359471111,0.08069396,94440.0,94439.0,1.553962]
[1736359471514,0.05714396,94440.0,94439.0,1.914762]
[1736359471704,0.0176,94457.0,94456.0,0.052953]
[1736359472302,0.0176,94457.0,94456.0,0.05287939]
[1736359472505,0.09403701,94471.0,94470.0,0.052945]
[1736359472703,0.1,94480.0,94470.0,0.774545]
[1736359472920,0.1,94480.0,94479.0,1.55294]
[1736359473105,0.1,94480.0,94479.0,1.5]
[1736359473311,0.1,94480.0,94470.0,0.3608]
[1736359473312,0.05294,94479.0,94470.0,0.3608]
[1736359473517,0.1,94480.0,94470.0,0.3608]
[1736359473817,0.1,94480.0,94471.0,1.5]
[1736359474218,0.1,94480.0,94479.0,0.009]
[1736359474420,0.152939,94480.0,94479.0,0.009]
[1736359474714,0.1,94480.0,94479.0,0.009]
[1736359475110,0.1,94480.0,94478.0,0.05294]
[1736359475311,0.1,94480.0,94471.0,1.5098]
[1736359475511,0.1,94480.0,94471.0,0.009]
[1736359475710,0.1,94480.0,94478.0,0.05294]
[1736359476107,0.052943,94473.0,94472.0,1.50072]
[1736359476305,0.052943,94473.0,94471.0,0.018]
[1736359476515,0.1,94480.0,94471.0,0.018]
[1736359476814,0.1,94480.0,94479.0,0.009]
[1736359477517,0.1,94480.0,94478.0,0.41374]
[1736359478221,0.1,94480.0,94479.0,1.509]
[1736359478410,0.1,94480.0,94479.0,1.518]
[1736359479421,0.1,94480.0,94479.0,0.018]
[1736359479719,0.1,94480.0,94479.0,0.009]
[1736359479924,0.1,94480.0,94479.0,1.509]
[1736359480715,0.14703001,94500.0,94499.0,0.052929]
[1736359480926,0.052914,94525.0,94518.0,0.052918]
[1736359481116,0.07511767,94520.0,94519.0,0.3608]
[1736359481417,0.09953407,94530.0,94522.0,0.052916]
[1736359482112,0.09953407,94530.0,94529.0,0.052912]
[1736359482320,0.51755822,94556.0,94539.0,0.052906]
[1736359482513,0.51755822,94556.0,94538.0,0.3608]
[1736359482514,0.00064,94553.0,94538.0,0.3608]
[1736359482719,0.00064,94553.0,94530.0,0.19406291]
[1736359482720,0.3608,94548.0,94530.0,0.19406291]
[1736359482917,0.3608,94548.0,94531.0,0.3608]
[1736359483222,0.052908,94536.0,94531.0,0.3608]
[1736359483419,0.4608,94540.0,94531.0,0.3608]
[1736359483626,0.05291,94532.0,94531.0,0.3608]
[1736359483811,0.1,94560.0,94531.0,0.3608]
[1736359484014,0.08723403,94560.0,94559.0,0.052895]
[1736359484209,0.20073769,94578.0,94555.0,0.7216]
[1736359484409,0.14785269,94578.0,94577.0,0.3608]
[1736359484611,0.14785269,94578.0,94563.0,0.3608]
[1736359484817,0.05289,94569.0,94563.0,0.3608]
[1736359485018,0.052892,94565.0,94563.0,0.3608]
[1736359486225,0.052888,94572.0,94563.0,0.3608]
[1736359486520,0.1,94580.0,94571.0,0.3608]
[1736359486722,0.1,94580.0,94579.0,0.3608]
[1736359487317,0.152883,94580.0,94579.0,0.3608]
[1736359487731,0.1,94580.0,94579.0,0.3608]
[1736359488022,0.1,94580.0,94579.0,1.8688]
[1736359488223,0.1,94580.0,94579.0,0.3688]
[1736359488532,0.152883,94580.0,94579.0,0.3688]
[1736359489426,0.1,94580.0,94579.0,0.3688]
[1736359489615,0.1,94580.0,94579.0,1.8778]
[1736359490021,0.1,94580.0,94579.0,1.930684]
[1736359490621,0.07067744,94580.0,94579.0,2.230684]
[1736359490828,0.00771743,94580.0,94579.0,1.930684]
[1736359491234,0.06060043,94580.0,94579.0,0.3778]
[1736359491732,0.00771743,94580.0,94579.0,0.3778]
[1736359492027,0.06060043,94580.0,94579.0,0.3778]
[1736359492226,0.36060043,94580.0,94571.0,0.3608]
[1736359492533,0.3608,94572.0,94543.0,0.3608]
[1736359492827,0.29829027,94560.0,94543.0,0.3608]
[1736359493017,0.3071,94559.0,94543.0,0.3608]
[1736359493217,0.052903,94544.0,94543.0,0.3608]
[1736359493627,0.052907,94538.0,94535.0,0.3608]
[1736359493929,0.7216,94543.0,94517.0,0.3608]
[1736359494140,0.052918,94519.0,94517.0,0.3608]
[1736359494630,0.052922,94511.0,94510.0,0.3608]
[1736359495131,0.3608,94511.0,94496.0,0.0075541]
[1736359495332,0.3608,94503.0,94490.0,0.3608]
[1736359495533,0.052927,94502.0,94490.0,0.3608]
[1736359496125,0.052927,94502.0,94498.0,0.3608]
[1736359496326,0.052927,94502.0,94490.0,0.3608]
[1736359496327,0.052924,94508.0,94490.0,0.3608]
[1736359496530,0.3608,94512.0,94490.0,0.3608]
[1736359496829,0.3608,94512.0,94498.0,0.3608]
[1736359496830,0.052922,94511.0,94498.0,0.3608]
[1736359497036,0.006,94503.0,94498.0,0.3608]
[1736359497221,0.052929,94499.0,94498.0,0.3608]
[1736359497426,0.052929,94499.0,94498.0,0.001]
[1736359497822,0.006,94502.0,94498.0,0.001]
[1736359498034,0.006,94502.0,94501.0,0.3608]
[1736359498233,0.009,94508.0,94501.0,0.3608]
[1736359498427,0.009,94508.0,94507.0,0.052924]
[1736359498729,0.052908,94536.0,94518.0,0.052918]
[1736359498929,0.052908,94536.0,94533.0,0.3608]
[1736359499136,0.3608,94549.0,94533.0,0.3608]
[1736359499137,0.052909,94535.0,94533.0,0.3608]
[1736359499429,0.052924,94508.0,94507.0,1.50072]
[1736359499633,0.052921,94513.0,94507.0,1.5]
[1736359499930,0.052922,94511.0,94507.0,1.5]
[1736359500127,0.052924,94508.0,94507.0,1.5]
[1736359500531,0.054924,94508.0,94507.0,1.5]
[1736359500733,0.415724,94508.0,94507.0,1.5]
[1736359500930,0.002,94508.0,94495.0,0.3608]
[1736359501130,0.052938,94482.0,94481.0,0.3608]
[1736359501324,0.052933,94492.0,94481.0,0.3608]
[1736359501525,0.05293,94498.0,94482.0,1.5]
[1736359501721,0.3608,94499.0,94481.0,0.3608]
[1736359501933,0.052938,94482.0,94481.0,0.3608]
[1736359502131,0.052934,94491.0,94481.0,0.3608]
[1736359502329,0.052933,94492.0,94482.0,1.5]
[1736359502631,0.052935,94488.0,94482.0,1.5]
[1736359503022,0.052929,94500.0,94482.0,1.5]
[1736359503222,0.052938,94482.0,94481.0,0.3608]
[1736359503423,0.052939,94480.0,94462.0,0.3608]
[1736359503623,0.052949,94464.0,94462.0,0.3608]
[1736359503817,0.052949,94464.0,94441.0,0.18952104]
[1736359503818,0.3608,94464.0,94441.0,0.18952104]
[1736359504036,0.3608,94464.0,94439.0,0.3608]
[1736359504037,0.3608,94455.0,94445.0,0.18952104]
[1736359504227,0.052957,94448.0,94445.0,0.18952104]
[1736359504425,0.2899,94463.0,94445.0,0.18952104]
[1736359504734,0.052958,94446.0,94445.0,0.18952104]
[1736359505234,0.3608,94457.0,94445.0,0.18952104]
[1736359505420,0.3608,94446.0,94440.0,0.0358]
[1736359505625,0.052961,94441.0,94440.0,0.0358]
[1736359506726,0.052975,94416.0,94414.0,0.3608]
[1736359507434,0.052978,94411.0,94409.0,0.3608]
[1736359508025,0.3608,94419.0,94410.0,1.5]
[1736359508233,0.00060001,94428.0,94422.0,0.052972]
[1736359508431,0.052969,94427.0,94426.0,0.3608]
[1736359508633,0.29829027,94440.0,94418.0,0.3608]
[1736359508634,0.052973,94420.0,94418.0,0.3608]
[1736359509026,0.052976,94415.0,94414.0,0.001]
[1736359510138,0.3608,94422.0,94409.0,0.001]
[1736359510441,0.3608,94422.0,94361.0,0.053006]
[1736359510442,0.052989,94392.0,94382.0,0.3608]
[1736359510831,0.052989,94392.0,94391.0,1.8608]
[1736359511247,0.3608,94410.0,94391.0,1.8608]
[1736359511534,0.052982,94404.0,94403.0,0.3608]
[1736359512137,0.001,94415.0,94403.0,0.3608]
[1736359512138,0.052978,94412.0,94403.0,0.3608]
[1736359512343,0.001,94415.0,94413.0,0.052977]
[1736359513539,0.052968,94429.0,94419.0,0.052973]
[1736359513736,0.5757,94470.0,94436.0,0.052963]
[1736359513737,0.052962,94441.0,94436.0,0.052963]
[1736359513934,0.052962,94441.0,94440.0,0.3608]
[1736359515041,0.3608,94445.0,94428.0,0.3608]
[1736359515245,0.052968,94429.0,94428.0,0.3608]
[1736359516537,0.052979,94410.0,94409.0,0.3608]
[1736359517342,0.052979,94410.0,94401.0,0.3608]
[1736359517537,0.052983,94402.0,94401.0,0.3608]
[1736359517850,0.052992,94386.0,94385.0,0.3608]
[1736359518046,0.052992,94386.0,94385.0,1.8608]
[1736359519147,0.052987,94395.0,94389.0,0.05299]
[1736359519347,0.3618,94402.0,94394.0,0.3608]
[1736359519549,0.001,94402.0,94394.0,0.3608]
[1736359520638,0.002,94402.0,94394.0,0.3608]
[1736359520841,0.001,94402.0,94394.0,0.3608]
[1736359521345,0.005,94402.0,94394.0,0.3608]
[1736359521648,0.052979,94400.0,94394.0,0.3608]
[1736359522054,0.007,94402.0,94394.0,0.3608]
[1736359522243,0.007,94402.0,94398.0,0.3608]
[1736359522641,0.007,94402.0,94398.0,0.413779]
[1736359523150,0.002,94400.0,94398.0,0.3608]
[1736359523337,0.00060001,94420.0,94419.0,0.052968]
[1736359523540,0.05296,94434.0,94419.0,1.8608]
[1736359523844,0.5,94445.0,94430.0,0.3608]
[1736359524043,0.5,94445.0,94441.0,0.3608]
[1736359524344,0.052955,94442.0,94441.0,0.3608]
[1736359524743,0.00762679,94450.0,94441.0,0.3608]
[1736359524941,0.29829027,94470.0,94455.0,0.052948]
[1736359524942,0.052945,94461.0,94455.0,0.052948]
[1736359525144,0.052945,94461.0,94460.0,0.3608]
[1736359525748,0.00783341,94463.0,94460.0,0.3608]
[1736359525948,0.15567384,94478.0,94460.0,0.3608]
[1736359526264,0.5,94468.0,94460.0,0.3608]
[1736359526456,0.29829027,94470.0,94460.0,0.3608]
[1736359526642,0.052944,94462.0,94460.0,0.3608]
[1736359527849,0.056944,94462.0,94460.0,0.3608]
[1736359528049,0.004,94462.0,94460.0,0.3608]
[1736359528459,0.006,94462.0,94460.0,0.3608]
[1736359528855,0.058944,94462.0,94460.0,0.3608]
[1736359529152,0.05295,94451.0,94436.0,0.3608]
[1736359529343,0.052958,94437.0,94436.0,0.3608]
[1736359529944,0.052958,94437.0,94436.0,0.33879999]
[1736359530147,0.8608,94450.0,94436.0,0.33879999]
[1736359530454,0.052958,94437.0,94436.0,0.34079999]
[1736359530655,0.054958,94437.0,94436.0,0.34079999]
[1736359530955,0.054958,94437.0,94436.0,0.33879999]
[1736359531152,0.052958,94437.0,94436.0,0.33879999]
[1736359531454,0.002,94450.0,94436.0,0.33879999]
[1736359531648,0.054951,94450.0,94449.0,0.3608]
[1736359531844,0.052945,94461.0,94449.0,0.3608]
[1736359532150,0.15567384,94485.0,94464.0,0.052943]
[1736359532151,0.05294,94470.0,94464.0,0.052943]
[1736359532352,0.05294,94470.0,94469.0,0.3608]
[1736359533054,0.05294,94470.0,94469.0,1.8608]
[1736359533651,0.05594,94470.0,94469.0,1.8608]
[1736359534349,0.05594,94470.0,94469.0,0.3608]
[1736359534554,0.052945,94461.0,94460.0,0.3608]
[1736359534751,0.052945,94461.0,94460.0,0.7216]
[1736359535252,0.052945,94461.0,94450.0,0.3136]
[1736359535253,0.05295,94451.0,94450.0,0.3608]
[1736359535643,0.052956,94440.0,94439.0,0.3608]
[1736359535849,0.052964,94427.0,94426.0,0.3608]
[1736359537452,0.052968,94420.0,94419.0,0.3608]
[1736359538146,0.052968,94420.0,94419.0,1.8608]
[1736359538459,0.052974,94408.0,94407.0,0.3608]
[1736359539049,0.052974,94408.0,94391.0,0.3112]
[1736359539359,0.052984,94390.0,94389.0,0.3608]
[1736359539547,0.413784,94390.0,94389.0,1.5]
[1736359540557,0.052988,94383.0,94382.0,0.3608]
[1736359540952,0.215788,94390.0,94382.0,1.8608]
[1736359541151,0.052988,94383.0,94382.0,1.5]
[1736359541650,0.221788,94390.0,94365.0,0.3608]
[1736359541651,0.052998,94367.0,94365.0,0.3608]
[1736359541956,0.052998,94367.0,94366.0,1.5]
[1736359543250,0.052998,94367.0,94361.0,0.18680861]
[1736359543450,0.4138,94362.0,94361.0,0.18680861]
[1736359543846,0.4138,94362.0,94345.0,0.3608]
[1736359543847,0.053007,94351.0,94345.0,0.3608]
[1736359544260,0.3608,94362.0,94350.0,0.053007]
[1736359544445,0.3608,94362.0,94345.0,0.3608]
[1736359544858,0.053005,94355.0,94347.0,0.053008]
[1736359545261,0.053009,94347.0,94345.0,0.3608]
[1736359545958,0.5,94376.0,94345.0,0.3608]
[1736359546161,0.48691486,94386.0,94359.0,0.3608]
[1736359546162,0.3608,94378.0,94359.0,0.3608]
[1736359546359,0.3608,94368.0,94345.0,0.3608]
[1736359546660,0.053009,94346.0,94345.0,0.3608]
[1736359547754,0.06168646,94346.0,94345.0,0.3608]
[1736359547955,0.053015,94335.0,94334.0,1.8608]
[1736359548157,0.053015,94335.0,94334.0,0.3608]
[1736359548768,0.053015,94335.0,94320.0,0.3608]
[1736359548769,0.053015,94335.0,94325.0,1.5]
[1736359548963,0.053015,94335.0,94320.0,0.3608]
[1736359548964,0.053023,94321.0,94320.0,0.3608]
[1736359550159,0.001,94335.0,94320.0,0.3608]
[1736359550360,0.053023,94322.0,94320.0,0.3608]
[1736359550669,0.053023,94322.0,94300.0,0.1]
[1736359550670,0.053028,94313.0,94302.0,0.3608]
[1736359550967,0.053034,94301.0,94300.0,0.1]
[1736359551565,0.053034,94301.0,94282.0,0.3608]
[1736359551871,0.053034,94301.0,94271.0,0.3608]
[1736359551872,0.053045,94283.0,94271.0,0.3608]
[1736359552058,0.05305,94273.0,94271.0,0.3608]
[1736359553066,0.053051,94273.0,94271.0,0.3608]
[1736359553764,0.29829027,94300.0,94271.0,0.3608]
[1736359553967,0.053051,94272.0,94271.0,0.3608]
[1736359554569,0.5,94271.0,94246.0,0.3608]
[1736359554757,0.053053,94269.0,94254.0,0.3608]
[1736359555071,0.05306,94255.0,94254.0,0.3608]
[1736359555660,0.053058,94260.0,94254.0,0.3608]
[1736359555868,0.005,94272.0,94255.0,0.05306]
[1736359556162,0.005,94272.0,94267.0,0.3608]
[1736359556163,0.053053,94268.0,94267.0,0.3608]
[1736359556364,0.005,94272.0,94267.0,0.3608]
[1736359556365,0.005,94272.0,94271.0,0.053051]
[1736359556572,0.005,94272.0,94271.0,0.413851]
[1736359556870,0.005,94272.0,94271.0,0.3608]
[1736359557074,0.053055,94264.0,94263.0,0.3608]
[1736359557275,0.053051,94273.0,94255.0,0.6658]
[1736359557276,0.35134127,94273.0,94255.0,0.6658]
[1736359557567,0.3608,94275.0,94264.0,0.3608]
[1736359557773,0.1,94280.0,94274.0,0.3608]
[1736359557961,0.1,94280.0,94279.0,1.913847]
[1736359559070,0.1,94280.0,94279.0,1.8608]
[1736359559265,0.153046,94280.0,94279.0,1.8608]
[1736359559473,0.1,94280.0,94279.0,1.8608]
[1736359559869,0.109,94280.0,94279.0,1.8608]
[1736359560071,0.113,94280.0,94279.0,1.83879999]
[1736359560473,0.1,94300.0,94279.0,1.83879999]
[1736359560672,0.1,94300.0,94299.0,0.3608]
[1736359560871,0.1,94320.0,94319.0,0.053024]
[1736359561078,0.1,94320.0,94319.0,0.774624]
[1736359561272,0.05465049,94320.0,94319.0,2.274624]
[1736359561676,0.053014,94338.0,94319.0,2.2216]
[1736359561974,0.1,94360.0,94338.0,0.053013]
[1736359562179,0.053003,94357.0,94338.0,0.053013]
[1736359562367,0.1,94360.0,94357.0,0.053003]
[1736359562675,0.1,94360.0,94359.0,0.413802]
[1736359563279,0.1,94380.0,94359.0,0.6608]
[1736359563466,0.1,94380.0,94379.0,0.774591]
[1736359563669,0.1,94380.0,94379.0,2.274591]
[1736359564376,0.1,94380.0,94379.0,2.2216]
[1736359565579,0.1,94380.0,94379.0,0.7286]
[1736359565970,0.1,94380.0,94379.0,0.7326]
[1736359566166,0.1,94380.0,94379.0,0.7316]
[1736359566366,0.1,94380.0,94379.0,0.3708]
[1736359566779,0.1,94380.0,94379.0,0.420791]
[1736359567281,0.1,94380.0,94379.0,0.3678]
[1736359568573,0.1,94380.0,94379.0,0.3638]
[1736359569281,0.2,94400.0,94399.0,0.052979]
[1736359569484,0.2,94400.0,94399.0,0.774579]
[1736359569776,0.2,94400.0,94399.0,2.274579]
[1736359570277,0.052965,94425.0,94413.0,0.052971]
[1736359570479,0.75909027,94440.0,94419.0,0.3608]
[1736359570683,0.29829027,94430.0,94419.0,0.3608]
[1736359570976,0.052967,94421.0,94419.0,0.3608]
[1736359571184,0.052962,94430.0,94419.0,0.7216]
[1736359571377,0.052957,94439.0,94419.0,0.7216]
[1736359571583,0.1,94440.0,94419.0,0.7216]
[1736359571878,0.1,94440.0,94419.0,2.2216]
[1736359571879,0.00890908,94434.0,94419.0,2.2216]
[1736359572077,0.1,94440.0,94419.0,2.2216]
[1736359572576,0.1,94440.0,94419.0,2.03075489]
[1736359573470,0.1,94440.0,94419.0,2.03175489]
[1736359573778,0.1,94440.0,94439.0,0.413757]
[1736359574680,0.1,94460.0,94439.0,0.6608]
[1736359574877,0.1,94460.0,94459.0,0.3608]
[1736359575673,0.1,94480.0,94459.0,0.3608]
[1736359575983,0.1,94480.0,94476.0,0.3608]
[1736359576486,0.052935,94478.0,94476.0,0.3608]
[1736359576778,0.413735,94478.0,94459.0,0.3698]
[1736359576972,0.3608,94478.0,94459.0,0.3698]
[1736359577478,0.052952,94448.0,94447.0,0.3608]
[1736359577870,0.052962,94430.0,94428.0,0.3608]
[1736359578278,0.052957,94439.0,94428.0,0.3608]
[1736359578584,0.052963,94429.0,94428.0,0.3608]
[1736359578984,0.052959,94436.0,94430.0,0.052962]
[1736359579280,0.3608,94442.0,94430.0,0.052962]
[1736359579483,0.052962,94430.0,94422.0,0.413766]
[1736359579885,0.052962,94430.0,94411.0,1.5006]
[1736359579886,0.052966,94424.0,94418.0,0.052969]
[1736359580386,0.052966,94424.0,94411.0,1.5]
[1736359580387,0.3608,94432.0,94411.0,1.50056]
[1736359580779,0.052972,94413.0,94411.0,1.5]
[1736359581285,0.052965,94424.0,94415.0,0.05297]
[1736359581488,0.052963,94429.0,94418.0,0.3608]
[1736359581677,0.3608,94432.0,94420.0,0.052967]
[1736359581982,0.3608,94432.0,94418.0,0.3608]
[1736359582180,0.3608,94423.0,94411.0,1.50056]
[1736359582381,0.3608,94423.0,94411.0,1.5]
[1736359582583,0.052972,94413.0,94411.0,1.503]
[1736359583282,0.052972,94413.0,94411.0,1.509]
[1736359583283,0.3608,94412.0,94411.0,1.509]
[1736359583482,0.3608,94412.0,94411.0,1.512]
[1736359584086,0.3608,94412.0,94384.0,0.3608]
[1736359584087,0.6608,94412.0,94384.0,0.3608]
[1736359584389,0.052983,94393.0,94389.0,0.052985]
[1736359584583,0.052983,94393.0,94392.0,1.5]
[1736359585090,0.052979,94400.0,94392.0,1.5]
[1736359585288,0.3608,94408.0,94399.0,0.3608]
[1736359585586,0.3608,94415.0,94406.0,0.052975]
[1736359585989,0.052971,94414.0,94406.0,0.052975]
[1736359586491,0.001,94412.0,94406.0,0.052975]
[1736359586791,0.052974,94409.0,94399.0,0.3608]
[1736359587186,0.052974,94409.0,94396.0,0.00880015]
[1736359587187,0.001,94412.0,94406.0,0.3608]
[1736359587377,0.001,94414.0,94413.0,0.052971]
[1736359588079,0.3608,94441.0,94413.0,0.713771]
[1736359588285,0.052953,94446.0,94440.0,1.5]
[1736359588887,0.052949,94453.0,94441.0,0.052956]
[1736359589185,0.3608,94456.0,94441.0,0.052956]
[1736359589577,0.3608,94456.0,94445.0,0.3608]
[1736359589776,0.3608,94456.0,94454.0,0.052948]
[1736359589988,0.3608,94456.0,94454.0,0.03094799]
[1736359590189,0.052951,94451.0,94445.0,0.052954]
[1736359590377,0.052956,94442.0,94440.0,1.50056]
[1736359590583,0.052956,94442.0,94441.0,0.002]
[1736359591489,0.3608,94448.0,94427.0,1.5]
[1736359591490,0.052958,94437.0,94427.0,1.5]
[1736359591681,0.052955,94443.0,94427.0,1.5]
[1736359591884,0.3608,94448.0,94437.0,0.3608]
[1736359592081,0.3608,94448.0,94446.0,0.052953]
[1736359592286,0.3608,94456.0,94455.0,0.052948]
[1736359592491,0.3608,94472.0,94447.0,0.3608]
[1736359592695,0.3608,94472.0,94463.0,0.052943]
[1736359592893,0.3608,94472.0,94464.0,1.5]
[1736359593994,0.052942,94465.0,94464.0,1.5]
[1736359595189,0.3658,94472.0,94464.0,1.5]
[1736359595379,0.05294,94471.0,94467.0,0.052941]
[1736359595580,0.052942,94465.0,94464.0,1.5]
[1736359595895,0.052952,94449.0,94445.0,0.052953]
[1736359596097,0.3608,94453.0,94437.0,0.3608]
[1736359596286,0.3608,94453.0,94438.0,1.552957]
[1736359596487,0.3608,94445.0,94438.0,1.552957]
[1736359596684,0.052957,94439.0,94430.0,0.24907814]
[1736359597190,0.3608,94440.0,94430.0,0.24907814]
[1736359597393,0.052955,94442.0,94440.0,0.052956]
[1736359597591,0.052952,94448.0,94443.0,0.052954]
[1736359597786,0.3608,94444.0,94435.0,0.19480861]
[1736359597986,0.052959,94436.0,94435.0,0.19780861]
[1736359598389,0.413759,94436.0,94435.0,0.01]
[1736359599386,0.413759,94436.0,94435.0,0.002282]
[1736359599585,0.42295849,94436.0,94435.0,0.002282]
[1736359599789,0.42295849,94436.0,94410.0,0.18680861]
[1736359599986,0.3608,94414.0,94406.0,0.052975]
[1736359600185,0.3608,94414.0,94400.0,0.18680861]
[1736359600386,0.3608,94433.0,94413.0,1.8]
[1736359600598,0.3608,94416.0,94414.0,0.052971]
[1736359600795,0.3608,94425.0,94413.0,1.8]
[1736359600997,0.052962,94431.0,94428.0,0.052963]
[1736359601190,0.052962,94430.0,94427.0,0.052964]
[1736359601387,0.052963,94428.0,94427.0,0.052964]
[1736359602095,0.09386951,94432.0,94431.0,0.052961]
[1736359602301,0.3608,94433.0,94431.0,0.052961]
[1736359602496,0.09386951,94449.0,94444.0,0.052954]
[1736359602791,0.09386951,94449.0,94448.0,0.052952]
[1736359603185,0.09386951,94449.0,94448.0,0.413752]
[1736359603389,0.09518337,94455.0,94448.0,1.92293961]
[1736359603697,0.09475471,94469.0,94468.0,0.052941]
[1736359603896,0.12633962,94473.0,94472.0,0.052938]
[1736359604689,0.12633962,94473.0,94468.0,0.7216]
[1736359604991,0.25567384,94480.0,94468.0,0.7216]
[1736359604992,0.052936,94477.0,94476.0,0.052936]
[1736359605690,0.052936,94477.0,94472.0,0.008]